bitfinex/quotes_ETHUSD_20220226
["timestamp","ask_amount","ask_price","bid_price","bid_amount"]
[1645891189301,0.05,2788.4,2788.1,0.00507352]
[1645891189503,0.05,2788.4,2787.3,0.00371095]
[1645891189701,3.5,2788.5,2787.3,0.00371095]
[1645891189906,1.10480142,2788.5,2788.1,0.00489334]
[1645891190105,1.0,2788.5,2788.1,0.00489334]
[1645891190403,0.6,2788.6,2788.1,0.00489334]
[1645891190603,0.3,2788.6,2788.1,0.00489334]
[1645891190807,0.89738,2788.4,2787.3,0.00371095]
[1645891191107,0.89738,2788.4,2787.3,1.51943478]
[1645891191307,6.5947311,2788.6,2787.7,1.21289705]
[1645891191506,1.0,2788.6,2787.7,1.21289705]
[1645891191708,4.85185941,2788.7,2787.7,1.21289705]
[1645891191906,2.90225941,2788.7,2787.8,1.51926928]
[1645891193359,2.90225941,2788.7,2787.8,0.00371095]
[1645891193561,2.90225941,2788.7,2787.6,1.51939857]
[1645891193562,4.20225941,2788.7,2787.6,1.51939857]
[1645891193761,4.20225941,2788.7,2787.3,0.00371095]
[1645891193959,0.89739,2788.4,2787.3,1.51946276]
[1645891194158,0.3,2788.6,2787.3,1.51946276]
[1645891194360,0.3,2788.6,2787.4,1.21352025]
[1645891194361,1.28125289,2788.3,2787.4,1.21352025]
[1645891194559,1.28125289,2788.3,2787.5,1.51946276]
[1645891194761,0.3,2788.6,2787.7,0.00507143]
[1645891195065,4.20225941,2788.7,2787.7,0.00878238]
[1645891195259,4.20225941,2788.7,2787.7,0.00507143]
[1645891195461,4.20225941,2788.7,2787.3,0.00371095]
[1645891195659,4.20225941,2788.7,2787.3,1.51940484]
[1645891195860,2.90225941,2788.7,2788.1,0.00507107]
[1645891196502,2.90225941,2788.7,2788.1,0.00359993]
[1645891196703,2.90225941,2788.7,2787.7,0.00371095]
[1645891196903,2.90225941,2788.7,2787.4,1.5193735]
[1645891197106,2.90225941,2788.7,2787.4,1.8193735]
[1645891197306,2.90225941,2788.7,2787.5,1.51566255]
[1645891197503,2.90225941,2788.7,2787.6,0.00371095]
[1645891197808,5.49954358,2788.7,2787.4,1.5193735]
[1645891198005,6.44686358,2788.7,2787.4,1.5193735]
[1645891198204,3.5,2788.6,2787.4,0.00371095]
[1645891198603,0.05002,2788.5,2787.4,0.00371095]
[1645891198804,0.05002,2788.5,2787.5,1.31977779]
[1645891199005,0.94739,2788.6,2787.6,1.51950588]
[1645891199206,4.19954358,2788.7,2787.7,0.00371095]
[1645891199405,4.19954358,2788.7,2787.9,0.00290842]
[1645891199855,2.90225941,2788.7,2787.9,0.00661937]
[1645891200068,2.90225941,2788.7,2787.9,0.00290842]
[1645891200266,2.90225941,2788.7,2787.7,1.51556643]
[1645891200460,2.90225941,2788.7,2787.8,0.00371095]
[1645891200657,2.90225941,2788.7,2788.2,0.0052037]
[1645891201659,2.90225941,2788.7,2788.0,1.33980676]
[1645891201859,2.90225941,2788.7,2788.2,0.0052038]
[1645891202661,0.00235941,2788.7,2787.6,0.00371095]
[1645891202861,0.00235941,2788.7,2788.2,0.06196732]
[1645891203067,1.42101951,2788.7,2788.2,0.0052038]
[1645891204096,1.42101951,2788.7,2787.9,0.00371095]
[1645891204296,1.42101951,2788.7,2788.3,0.06196732]
[1645891204497,1.42101951,2788.7,2788.2,0.0052038]
[1645891205100,1.42101951,2788.7,2787.9,0.00371095]
[1645891205400,0.00235941,2788.7,2788.2,0.00520069]
[1645891205799,0.00235941,2788.7,2788.4,0.06196732]
[1645891206207,0.00235941,2788.7,2788.2,0.00520069]
[1645891206406,0.00235941,2788.7,2787.9,3.50371095]
[1645891206705,0.00235941,2788.7,2788.2,0.00520077]
[1645891207358,0.00235941,2788.7,2788.4,0.06196732]
[1645891207559,0.00235941,2788.7,2787.9,3.50371095]
[1645891207759,0.00235941,2788.7,2788.0,1.51548065]
[1645891207957,0.00235941,2788.7,2788.2,0.00520069]
[1645891208763,0.00235941,2788.7,2787.9,3.50371095]
[1645891208963,0.00235941,2788.7,2788.4,0.06196732]
[1645891209164,0.00235941,2788.7,2788.6,0.93039037]
[1645891209364,0.00235941,2788.7,2788.6,1.86078074]
[1645891210566,0.00235941,2788.7,2788.6,1.92274806]
[1645891210772,0.95441704,2788.7,2788.6,1.92274806]
[1645891211210,0.00235941,2788.7,2788.6,1.92274806]
[1645891213918,0.00235941,2788.7,2788.6,5.42274806]
[1645891214119,0.00235941,2788.7,2788.6,8.13099165]
[1645891214957,0.00235941,2788.7,2788.6,19.05099165]
[1645891215358,0.00235941,2788.7,2788.6,8.13099165]
[1645891215866,0.00235941,2788.7,2788.6,19.05099165]
[1645891216059,0.00235941,2788.7,2788.6,18.21608552]
[1645891216060,5.941e-05,2788.7,2788.6,18.21608552]
[1645891216258,5.941e-05,2788.7,2788.6,18.73208552]
[1645891216657,0.00520251,2788.9,2788.6,18.73208552]
[1645891216658,3.85949955,2789.7,2788.8,10.92]
[1645891216860,3.85949955,2789.7,2788.9,15.93533746]
[1645891217059,0.90203763,2789.7,2789.0,1.51533746]
[1645891217260,0.90203763,2789.7,2789.4,0.93039037]
[1645891217662,11.3063,2790.2,2789.5,3.5]
[1645891217663,0.90203763,2789.8,2789.5,3.5]
[1645891217863,0.90203763,2790.2,2789.5,3.5]
[1645891218065,0.90203763,2790.2,2789.6,10.92]
[1645891218262,0.09532159,2790.3,2789.7,3.5]
[1645891218516,0.09532159,2790.3,2789.6,11.278]
[1645891218714,0.09532159,2790.3,2790.2,1.32065703]
[1645891219321,0.09532159,2790.3,2789.6,1.89638]
[1645891219619,0.99735922,2790.3,2789.4,0.93039037]
[1645891220216,0.99735922,2790.3,2789.8,0.06196732]
[1645891220418,0.99735922,2790.3,2789.4,0.93039037]
[1645891220619,0.99735922,2790.3,2789.6,1.27034133]
[1645891220819,0.99735922,2790.3,2789.4,0.93039037]
[1645891221024,0.00520156,2790.0,2789.4,0.93039037]
[1645891221222,0.90723919,2790.0,2789.4,0.93039037]
[1645891221422,0.90203763,2789.9,2789.4,0.93039037]
[1645891221819,0.90203763,2789.9,2789.6,0.06196732]
[1645891221820,5.29897763,2789.8,2789.6,0.06196732]
[1645891222122,0.95207763,2789.7,2789.4,9.037e-05]
[1645891222370,0.90203763,2789.5,2788.5,0.0052042]
[1645891222573,0.90203763,2789.2,2788.5,0.0052042]
[1645891222771,3.5,2789.1,2788.5,0.0052042]
[1645891223071,1.92853763,2789.2,2788.5,0.0052042]
[1645891223072,1.0265,2789.2,2788.5,0.0052042]
[1645891223371,0.00520247,2789.0,2788.8,0.06196732]
[1645891223771,0.00520247,2789.0,2788.5,0.0052035]
[1645891224372,2.07459907,2789.2,2788.1,1.37064764]
[1645891224576,2.07459907,2789.2,2788.2,1.5154994]
[1645891224577,0.00229243,2789.0,2788.2,1.5154994]
[1645891224773,0.00229243,2789.0,2788.7,0.06196732]
[1645891225173,0.00229243,2789.0,2788.1,1.37064764]
[1645891225371,0.00229243,2789.0,2788.2,1.51546196]
[1645891225573,1.04809907,2789.2,2788.2,1.51546196]
[1645891226006,1.34809907,2789.2,2788.2,1.51546196]
[1645891226214,2.2501367,2789.2,2788.1,1.37064764]
[1645891226412,5.7501367,2789.2,2788.1,1.37064764]
[1645891226608,3.4645367,2789.2,2788.1,1.37064764]
[1645891226810,4.4645367,2789.2,2788.1,1.37064764]
[1645891227010,2.56249907,2789.2,2788.5,0.00290699]
[1645891227215,4.4645367,2789.2,2788.5,0.00290699]
[1645891227616,0.90203763,2789.0,2788.8,0.93039037]
[1645891227919,0.44686649,2788.7,2787.9,0.25]
[1645891228113,0.9534661,2788.6,2787.3,0.00371095]
[1645891228315,3.5,2788.5,2787.3,0.00371095]
[1645891228512,7.3991661,2788.6,2787.3,1.51960428]
[1645891228513,1.7952715,2787.8,2787.3,1.51960428]
[1645891228716,1.7952715,2787.8,2787.3,1.51589333]
[1645891228717,2.12654,2787.8,2787.3,1.51589333]
[1645891229213,2.42654,2787.8,2787.1,0.00371095]
[1645891229413,2.37654,2787.8,2787.6,0.06196732]
[1645891229612,4.17192,2787.8,2787.1,0.00371095]
[1645891229860,1.08952984,2787.7,2787.1,0.00371095]
[1645891230065,1.08952984,2787.7,2786.4,0.00371095]
[1645891230066,1.8713293,2787.6,2786.4,0.00371095]
[1645891230263,0.89778,2787.3,2786.4,1.5071011]
[1645891230463,0.0758093,2787.2,2786.5,0.04320018]
[1645891230767,0.0758093,2787.2,2786.6,1.50339015]
[1645891230965,1.44392042,2787.2,2786.9,0.06196732]
[1645891231166,0.0758093,2787.1,2786.9,0.06196732]
[1645891231367,0.0758093,2787.1,2787.0,0.04035806]
[1645891231368,1.2174093,2787.1,2787.0,0.04035806]
[1645891231565,2.1152093,2787.1,2787.0,0.04035806]
[1645891232568,2.1152093,2787.1,2787.0,0.10232538]
[1645891233168,2.1152093,2787.1,2786.4,0.00371095]
[1645891233372,0.89796,2786.8,2786.4,1.5019429]
[1645891233608,0.0758093,2786.7,2786.4,0.00371095]
[1645891233809,1.31157505,2786.5,2786.3,3.7240424]
[1645891234014,2.12827505,2786.5,2786.3,3.7240424]
[1645891234211,2.42827505,2786.5,2786.3,3.7240424]
[1645891234414,0.97390145,2786.4,2786.3,3.7240424]
[1645891234811,0.97390145,2786.4,2786.3,2.79637197]
[1645891235813,0.97390145,2786.4,2786.3,2.51673478]
[1645891236012,0.89807,2786.4,2786.3,2.51673478]
[1645891236213,0.89807,2786.4,2786.3,1.03954964]
[1645891236415,0.94807,2786.4,2786.3,1.03954964]
[1645891237016,2.2106,2786.5,2786.3,1.03954964]
[1645891237255,1.9496,2786.5,2786.3,1.03954964]
[1645891238062,1.9496,2786.5,2786.3,1.04474557]
[1645891238961,1.9496,2786.5,2786.3,1.03954964]
[1645891239166,1.9496,2786.5,2786.3,1.04474557]
[1645891240161,1.9496,2786.5,2786.3,1.03954964]
[1645891240365,0.05108,2786.9,2786.4,3.5]
[1645891240566,0.14164948,2787.0,2786.5,0.358]
[1645891241040,0.14164948,2787.0,2786.6,3.5]
[1645891241238,0.14164948,2787.0,2786.3,1.03954964]
[1645891241636,0.14164948,2787.0,2786.6,0.0029045]
[1645891242437,0.14164948,2787.0,2786.4,0.00371095]
[1645891242643,0.14164948,2787.0,2786.3,1.03954964]
[1645891242838,0.14164948,2787.0,2786.7,0.00290445]
[1645891243638,0.14164948,2787.0,2786.4,0.00371095]
[1645891243838,0.14164948,2787.0,2786.7,0.00518877]
[1645891244037,0.14164948,2787.0,2786.4,0.00371095]
[1645891244238,0.14164948,2787.0,2786.3,1.01549661]
[1645891244865,0.14164948,2787.0,2786.3,0.99473841]
[1645891245669,0.14164948,2787.0,2786.4,0.358]
[1645891245869,0.14164948,2787.0,2786.5,11.278]
[1645891246068,0.14164948,2787.0,2786.5,0.358]
[1645891246669,0.14164948,2787.0,2786.4,0.00371095]
[1645891246870,0.14164948,2787.0,2786.4,0.358]
[1645891248704,0.14164948,2787.0,2786.6,0.00518893]
[1645891249713,0.14164948,2787.0,2786.4,0.00371095]
[1645891249908,0.14164948,2787.0,2786.6,0.00518901]
[1645891251013,0.14164948,2787.0,2786.4,0.00371095]
[1645891251214,0.14164948,2787.0,2786.6,0.00518901]
[1645891252114,0.14164948,2787.0,2786.4,0.00371095]
[1645891252382,0.14164948,2787.0,2786.6,0.00518901]
[1645891253280,0.14164948,2787.0,2786.4,0.00371095]
[1645891253777,0.14164948,2787.0,2786.3,0.99473841]
[1645891256553,0.14164948,2787.0,2786.3,0.99844936]
[1645891257255,0.14164948,2787.0,2786.5,0.00518517]
[1645891258059,0.14164948,2787.0,2786.3,0.99844936]
[1645891258258,0.14164948,2787.0,2786.6,0.00518516]
[1645891259056,0.07082474,2787.0,2786.6,0.00518516]
[1645891259255,0.07082474,2787.0,2786.3,0.99844936]
[1645891259657,0.07082474,2787.0,2786.6,0.0051852]
[1645891260472,0.07082474,2787.0,2786.3,0.99844936]
[1645891260876,0.07082474,2787.0,2786.6,0.0051852]
[1645891261769,0.0008,2786.5,2786.3,0.99844936]
[1645891261970,0.0008,2786.5,2786.3,0.99473841]
[1645891263177,0.0008,2786.5,2786.3,0.99992384]
[1645891264012,0.0008,2786.5,2786.3,0.99473841]
[1645891264614,0.0008,2786.5,2786.3,0.99992384]
[1645891265015,0.0008,2786.5,2786.3,2.18309065]
[1645891265216,0.0008,2786.5,2786.3,2.17790522]
[1645891265419,0.0008,2786.5,2786.3,0.99473841]
[1645891265615,0.0008,2786.5,2786.3,0.99992384]
[1645891265818,1.2258,2786.5,2786.3,0.99992384]
[1645891266419,2.35017797,2786.5,2786.3,0.99473841]
[1645891266618,1.2258,2786.5,2786.3,0.99473841]
[1645891266822,1.2258,2786.5,2786.3,0.84050594]
[1645891267673,1.2258,2786.5,2786.3,0.83532051]
[1645891268076,1.2258,2786.5,2786.3,0.84050594]
[1645891268878,0.0008,2786.5,2786.4,4.98779433]
[1645891269478,0.0008,2786.5,2786.4,6.26557261]
[1645891270481,0.0008,2786.5,2786.4,2.76557261]
[1645891270684,0.0008,2786.5,2786.4,6.26557261]
[1645891271119,0.0008,2786.5,2786.4,2.76557261]
[1645891271320,0.0008,2786.5,2786.4,1.48779433]
[1645891273226,0.0766205,2786.5,2786.4,1.48779433]
[1645891273422,0.0008,2786.5,2786.4,1.48779433]
[1645891274863,0.0008,2786.5,2786.4,4.98779433]
[1645891275264,0.0008,2786.5,2786.4,1.48779433]
[1645891278073,0.0766205,2786.5,2786.4,1.48779433]
[1645891278519,0.0766205,2786.5,2786.3,0.84050589]
[1645891278520,1.13189971,2786.5,2786.3,0.83532051]
[1645891278715,1.13189971,2786.5,2786.3,0.84050589]
[1645891278716,0.0758205,2786.4,2786.3,0.84050589]
[1645891279715,0.0758205,2786.4,2786.3,0.83532051]
[1645891280518,0.74857247,2786.4,2786.3,0.83532051]
[1645891280716,0.7556303,2786.4,2786.3,0.83532051]
[1645891280919,0.0758205,2786.4,2786.3,0.83532051]
[1645891281127,0.75563789,2786.4,2786.3,0.83532051]
[1645891281322,0.0758205,2786.4,2786.3,0.83532051]
[1645891281922,0.0758205,2786.4,2786.3,0.74919541]
[1645891282997,3.5758205,2786.4,2786.3,0.74919541]
[1645891283197,4.5758205,2786.4,2786.3,0.74919541]
[1645891283402,4.6258205,2786.4,2786.3,0.74919541]
[1645891284498,4.5758205,2786.4,2786.3,0.74919541]
[1645891284696,4.5,2786.3,2785.5,0.00371095]
[1645891284897,4.5758205,2786.4,2785.5,1.47574399]
[1645891284898,5.15335956,2786.2,2785.5,1.47574399]
[1645891285198,5.15335956,2786.2,2785.6,1.47203304]
[1645891285199,1.0635007,2785.9,2785.6,1.47203304]
[1645891285398,1.0635007,2785.9,2785.7,1.47203304]
[1645891285399,0.0758205,2785.8,2785.7,1.47203304]
[1645891285897,0.0758205,2785.8,2785.3,0.00371095]
[1645891286123,0.0758205,2785.8,2785.2,0.95]
[1645891286325,0.0758205,2785.8,2785.3,1.8295415]
[1645891286521,4.4035161,2786.4,2785.4,1.4715415]
[1645891286522,0.0758205,2785.7,2785.4,1.4715415]
[1645891286721,0.0758205,2785.7,2784.9,10.92]
[1645891286722,0.70401992,2786.4,2785.5,1.47525245]
[1645891286923,0.75527397,2786.3,2785.6,1.4715415]
[1645891287121,0.75527397,2786.3,2785.7,1.4715415]
[1645891287323,0.75527397,2786.3,2785.5,0.00371095]
[1645891287324,1.65334397,2786.3,2785.5,0.00371095]
[1645891287522,0.67942906,2786.1,2785.5,1.47112968]
[1645891287722,0.07584491,2786.0,2785.4,0.00510025]
[1645891287921,0.07584491,2785.9,2785.5,1.47060515]
[1645891288121,0.67942906,2786.1,2785.5,1.47060515]
[1645891288122,0.07584491,2785.8,2785.5,1.47060515]
[1645891288322,0.07584491,2785.7,2784.9,0.00371095]
[1645891288523,0.67942906,2786.1,2785.6,0.00510009]
[1645891288723,0.07584168,2786.0,2785.7,1.4705848]
[1645891288926,0.07584168,2785.9,2785.7,1.4705848]
[1645891289124,0.02556633,2786.3,2785.7,1.4705848]
[1645891289423,0.07584119,2786.2,2785.7,1.4705848]
[1645891289623,0.07082474,2786.1,2785.8,1.4705848]
[1645891290068,0.07082474,2786.1,2785.8,1.8285848]
[1645891290267,0.07082474,2786.1,2785.9,1.8285848]
[1645891290465,0.07082474,2786.1,2786.0,1.4705848]
[1645891290865,0.14666062,2786.1,2785.9,1.29392396]
[1645891291068,0.14666062,2786.1,2786.0,1.4705848]
[1645891291069,0.07082474,2786.1,2786.0,1.4705848]
[1645891291474,0.14665876,2786.1,2786.0,1.4705848]
[1645891291772,0.14164948,2786.1,2786.0,1.4705848]
[1645891292672,0.21748469,2786.1,2786.0,1.4705848]
[1645891292870,0.24198155,2786.1,2786.0,1.4705848]
[1645891293275,0.16614634,2786.1,2786.0,1.4705848]
[1645891293529,0.16614634,2786.1,2786.0,1.7785848]
[1645891293729,0.1906432,2786.1,2786.0,1.4205848]
[1645891294528,0.1906432,2786.1,2785.9,0.00482483]
[1645891294930,0.31026794,2786.1,2785.9,0.00482483]
[1645891295433,0.31026794,2786.1,2785.6,0.00371095]
[1645891295629,0.0488,2786.0,2785.9,0.00484414]
[1645891296641,0.0488,2786.0,2785.3,0.00371095]
[1645891296838,0.11962474,2786.0,2785.8,0.004532]
[1645891297675,0.11962474,2786.0,2785.6,1.04406949]
[1645891297874,0.19044948,2786.0,2785.6,1.04406949]
[1645891298074,0.14164948,2786.0,2785.8,0.00453204]
[1645891298875,0.21247422,2786.0,2785.8,0.00453204]
[1645891299077,0.21247422,2786.0,2785.6,1.40206949]
[1645891299283,0.21247422,2786.0,2785.8,0.00454128]
[1645891300080,0.23697108,2786.0,2785.8,0.00454128]
[1645891300277,0.23697108,2786.0,2785.6,1.40206949]
[1645891300478,0.23697108,2786.0,2785.8,0.00454128]
[1645891301117,0.30779582,2786.0,2785.8,0.00454128]
[1645891301318,0.30779582,2786.0,2785.6,1.40206949]
[1645891301721,0.30779582,2786.0,2785.8,0.00456186]
[1645891302121,0.37862056,2786.0,2785.8,0.00456186]
[1645891302518,0.37862056,2786.0,2785.6,12.32206949]
[1645891302923,0.37862056,2786.0,2785.8,0.00456055]
[1645891303122,0.40311742,2786.0,2785.8,0.00456055]
[1645891303422,0.35456351,2786.0,2785.8,0.00456055]
[1645891303820,0.35456351,2786.0,2785.6,0.358]
[1645891304020,0.42538825,2786.0,2785.8,0.00456055]
[1645891304868,0.42538825,2786.0,2785.8,1.37068193]
[1645891305073,0.42538825,2786.0,2785.8,1.36612138]
[1645891305074,0.44988511,2786.0,2785.8,1.36612138]
[1645891305272,0.44988511,2786.0,2785.8,1.37068059]
[1645891305871,0.44988511,2786.0,2785.8,0.00455921]
[1645891306076,0.47438197,2786.0,2785.8,0.00455921]
[1645891306275,0.47438197,2786.0,2785.6,0.34805628]
[1645891306474,0.47438197,2786.0,2785.8,0.00455921]
[1645891306877,0.47438197,2786.0,2785.9,1.34299452]
[1645891307277,0.49887883,2786.0,2785.9,1.34299452]
[1645891307477,0.44887883,2786.0,2785.9,1.34299452]
[1645891307777,0.44887883,2786.0,2785.9,1.20869507]
[1645891307978,0.44887883,2786.0,2785.8,0.0045593]
[1645891308179,0.51970357,2786.0,2785.8,0.0045593]
[1645891308617,0.51970357,2786.0,2785.5,0.87771095]
[1645891308819,0.51970357,2786.0,2785.8,0.00455944]
[1645891309217,0.54420043,2786.0,2785.8,0.00455944]
[1645891309819,0.54420043,2786.0,2785.5,1.57501789]
[1645891310018,0.49420043,2786.0,2785.8,0.00455944]
[1645891310219,0.56502517,2786.0,2785.8,0.00455944]
[1645891310919,0.56502517,2786.0,2785.6,3.5]
[1645891311422,0.58952203,2786.0,2785.8,0.00455942]
[1645891312274,0.61401889,2786.0,2785.5,1.05901789]
[1645891312463,0.61401889,2786.0,2785.8,0.00455941]
[1645891313063,0.63860975,2786.0,2785.8,0.00455941]
[1645891313466,0.07584223,2785.9,2785.6,3.5]
[1645891313665,0.07584223,2785.9,2785.7,1.46715331]
[1645891313865,0.07584223,2785.9,2785.8,1.46715331]
[1645891314066,0.07584223,2785.9,2785.6,1.46715331]
[1645891314266,0.07584223,2785.9,2785.7,1.46715331]
[1645891314466,0.07584223,2785.9,2785.4,3.50371095]
[1645891314769,0.07584223,2785.9,2785.5,1.46731797]
[1645891314966,0.07584223,2785.9,2785.6,0.00455955]
[1645891315171,0.07584223,2785.9,2785.7,1.46731797]
[1645891316012,0.07584223,2785.9,2785.7,0.00485237]
[1645891316224,1.14905968,2785.8,2785.7,0.00485237]
[1645891316420,2.68263097,2785.8,2785.7,0.00485237]
[1645891316620,2.73263097,2785.8,2785.7,0.00485237]
[1645891317020,2.78143097,2785.8,2784.8,0.00371095]
[1645891317218,0.12584223,2785.7,2784.8,1.45435089]
[1645891317425,0.07584223,2785.6,2784.9,1.19206162]
[1645891317617,0.07584223,2785.6,2785.0,1.45435089]
[1645891317817,0.0988,2785.7,2785.1,1.45435089]
[1645891317818,0.85407129,2785.7,2785.1,1.45435089]
[1645891318018,0.85407129,2785.7,2784.7,3.5]
[1645891318019,0.07584223,2785.6,2785.2,1.45435089]
[1645891318220,0.07584223,2785.6,2785.3,1.45435089]
[1645891318420,0.75527129,2785.6,2784.6,10.86]
[1645891318620,1.09045675,2785.4,2784.7,1.44819064]
[1645891318820,0.07584223,2785.3,2784.7,1.44819064]
[1645891319019,0.72942906,2785.5,2784.7,1.44819064]
[1645891319020,0.07584223,2785.2,2784.7,1.44819064]
[1645891319219,0.07584223,2785.1,2784.7,1.44819064]
[1645891319423,0.07584223,2785.0,2784.7,1.44819064]
[1645891319619,0.8464,2785.2,2784.7,1.44819064]
[1645891319892,0.12466106,2785.1,2784.7,1.44819064]
[1645891320100,0.12466106,2785.1,2784.4,0.0501]
[1645891320101,0.12586106,2785.0,2784.4,0.0501]
[1645891320292,0.07586106,2784.9,2784.5,1.43645436]
[1645891320693,0.07586106,2784.8,2784.5,1.43645436]
[1645891320897,0.02556633,2785.2,2784.5,1.43645436]
[1645891321094,0.07586645,2785.1,2784.5,1.43645436]
[1645891321294,0.02459086,2785.0,2784.5,1.43645436]
[1645891321497,0.07586645,2784.9,2784.5,1.43645436]
[1645891322095,0.07586645,2784.9,2784.6,0.00516452]
[1645891322495,0.12588645,2784.9,2784.6,0.00516452]
[1645891322704,0.07586645,2784.8,2784.6,0.00516452]
[1645891322898,0.12466645,2784.7,2784.6,0.00516452]
[1645891323097,1.95149551,2784.7,2784.4,0.0501]
[1645891323300,0.07586645,2784.6,2784.4,0.0501]
[1645891324018,0.07586645,2784.5,2784.4,0.0501]
[1645891324218,0.07586645,2784.7,2784.4,0.0501]
[1645891324420,0.10045731,2784.6,2784.4,0.05526478]
[1645891324620,0.07586645,2784.5,2784.4,0.05526478]
[1645891325420,0.07586645,2784.5,2784.4,0.0501]
[1645891326021,0.07684192,2784.5,2784.4,0.0501]
[1645891326637,0.10143278,2784.5,2784.4,0.0501]
[1645891326830,0.12592964,2784.5,2784.4,0.0501]
[1645891327026,0.12690511,2784.5,2784.4,0.0501]
[1645891327465,0.12690511,2784.5,2784.4,1.21492]
[1645891327667,0.15149597,2784.5,2784.3,0.00516483]
[1645891327873,0.07586645,2784.4,2783.8,0.00369992]
[1645891328068,0.07586645,2784.4,2784.3,0.00516483]
[1645891328970,0.07586645,2784.4,2784.0,1.08549936]
[1645891329370,0.07586645,2784.4,2784.2,0.00516493]
[1645891330273,0.26831766,2784.5,2783.8,0.00369992]
[1645891330577,0.26831766,2784.5,2784.3,1.38911427]
[1645891330578,0.29290852,2784.5,2784.3,1.38911427]
[1645891331056,0.36373326,2784.5,2784.3,1.38911427]
[1645891331461,0.38832412,2784.5,2784.3,1.38911427]
[1645891331659,0.38832412,2784.5,2784.3,1.39427915]
[1645891332060,0.46012433,2784.5,2784.3,1.39427915]
[1645891332663,0.48471519,2784.5,2783.9,0.00369992]
[1645891332864,0.48471519,2784.5,2784.3,0.00516488]
[1645891333063,0.51018752,2784.5,2784.3,0.00516488]
[1645891333666,0.53477838,2784.5,2784.3,0.00516488]
[1645891333866,0.53477838,2784.5,2783.9,0.00369992]
[1645891334066,0.0488,2784.4,2784.3,0.00516488]
[1645891335085,0.0488,2784.4,2783.8,0.00369992]
[1645891335270,0.0488,2784.4,2784.2,0.00516493]
[1645891336275,0.0488,2784.4,2784.0,1.08731155]
[1645891336475,0.0488,2784.4,2784.2,0.00516498]
[1645891337376,0.75579269,2784.5,2783.8,0.00369992]
[1645891337377,0.0488,2784.2,2783.8,0.00369992]
[1645891337576,0.0488,2784.2,2783.7,7.36]
[1645891337875,0.75579269,2784.5,2783.7,7.36]
[1645891337876,0.0488,2784.1,2783.7,7.38066303]
[1645891338076,0.78038355,2784.5,2783.7,7.38066303]
[1645891338278,0.0488,2784.4,2784.1,1.24118893]
[1645891338723,0.0488,2784.4,2784.2,3.5]
[1645891338924,0.80585588,2784.5,2784.3,0.874]
[1645891339123,0.80585588,2784.5,2784.4,3.858]
[1645891339321,0.87765609,2784.5,2784.4,17.49637577]
[1645891339523,0.87765609,2784.5,2784.4,16.19637577]
[1645891339821,0.90224695,2784.5,2784.4,17.14597577]
[1645891340025,0.90224695,2784.5,2784.4,13.28797577]
[1645891340423,0.97404716,2784.5,2784.4,12.33837577]
[1645891340622,0.97404716,2784.5,2784.4,12.13837577]
[1645891340827,0.99863802,2784.5,2784.4,1.41837577]
[1645891341135,0.07358458,2784.6,2784.4,16.19637577]
[1645891341329,0.00010021,2784.5,2784.4,20.778]
[1645891341529,0.07082474,2785.0,2784.6,17.778]
[1645891341729,0.07082474,2785.0,2784.8,10.92]
[1645891341930,0.07082474,2785.0,2784.9,4.91824992]
[1645891342131,0.00516285,2785.4,2785.0,7.0]
[1645891342379,0.00097547,2785.5,2785.2,0.89778]
[1645891342579,0.00516322,2785.4,2785.3,3.5]
[1645891342779,0.00516322,2785.4,2785.3,4.016]
[1645891343180,0.00516322,2785.4,2785.3,5.91378]
[1645891343379,0.00195094,2785.5,2785.3,5.91378]
[1645891343579,0.07180021,2785.5,2785.3,1.516]
[1645891343784,0.0769636,2785.5,2785.3,1.516]
[1645891344178,0.0769636,2785.5,2785.4,3.5]
[1645891344379,0.0769636,2785.5,2785.4,4.81902896]
[1645891344580,0.09629707,2785.5,2785.4,18.02946586]
[1645891344778,0.09629707,2785.5,2785.4,19.02946586]
[1645891345579,0.12079393,2785.5,2785.4,19.02946586]
[1645891345782,0.12079393,2785.5,2785.4,19.92719586]
[1645891346625,0.18471424,2785.5,2785.4,19.02946586]
[1645891346824,0.02449686,2785.9,2785.4,19.92717586]
[1645891347030,0.05167,2786.7,2785.8,11.278]
[1645891347236,9.686e-05,2786.2,2786.0,11.278]
[1645891347429,0.67942906,2787.5,2786.3,11.278]
[1645891347629,8.71305645,2788.1,2786.5,11.278]
[1645891347630,0.08370289,2787.4,2786.5,11.278]
[1645891347825,0.08370289,2787.3,2786.7,11.278]
[1645891348027,0.08370289,2787.2,2786.8,1.0]
[1645891348228,0.08370289,2787.1,2786.9,0.516]
[1645891348427,8.2635161,2788.1,2786.9,0.516]
[1645891348428,0.76313195,2787.7,2786.9,0.516]
[1645891348627,0.00515831,2787.1,2786.9,0.516]
[1645891348824,0.08370289,2787.0,2786.9,0.516]
[1645891349426,0.08370289,2787.0,2786.9,1.95843853]
[1645891349874,0.67942906,2787.7,2786.9,1.95843853]
[1645891349875,0.00515837,2787.1,2786.9,1.95843853]
[1645891350478,0.08152388,2787.0,2786.9,1.44243853]
[1645891350683,0.08152388,2787.0,2786.5,1.404]
[1645891350879,0.67942906,2787.5,2786.5,1.404]
[1645891350880,0.08152388,2786.9,2786.5,0.516]
[1645891351078,0.08152388,2786.8,2786.5,0.516]
[1645891351279,0.00515831,2787.1,2786.5,0.516]
[1645891351683,0.08154657,2787.0,2786.5,0.516]
[1645891352081,0.08670509,2786.9,2786.5,0.516]
[1645891352281,0.00515852,2786.9,2786.6,3.5]
[1645891352481,0.00515852,2786.9,2786.5,0.516]
[1645891352685,0.00515852,2786.9,2786.6,3.5]
[1645891352883,0.08152157,2786.8,2786.5,0.516]
[1645891353283,0.00515857,2786.9,2786.5,0.516]
[1645891353538,0.00515857,2786.9,2786.5,1.95964374]
[1645891353734,0.00515857,2786.9,2786.6,3.5]
[1645891353933,0.00515857,2786.9,2786.6,0.8974]
[1645891354135,0.67942906,2787.6,2786.6,4.3974]
[1645891354337,0.08136514,2787.5,2786.6,4.3974]
[1645891354536,0.67942906,2787.7,2786.6,4.3974]
[1645891354537,0.00515857,2786.9,2786.6,4.3974]
[1645891354738,0.00515857,2786.9,2786.7,4.74443941]
[1645891354936,0.00515857,2786.9,2786.7,15.66443941]
[1645891355138,0.00515857,2786.9,2786.8,15.294]
[1645891355339,5.857e-05,2786.9,2786.8,16.182]
[1645891355541,0.08112338,2787.9,2787.2,0.358]
[1645891355741,0.08112338,2787.8,2787.3,4.016]
[1645891356040,0.08112338,2787.7,2787.3,14.936]
[1645891356240,0.67942906,2788.4,2787.3,5.016]
[1645891356442,0.760519,2788.3,2787.4,0.888]
[1645891356640,0.08108994,2788.2,2787.4,1.404]
[1645891356847,0.08108994,2788.2,2787.4,0.516]
[1645891357043,0.00230285,2788.0,2787.4,0.516]
[1645891357277,0.03339279,2788.1,2787.4,0.516]
[1645891357480,0.03339279,2788.1,2787.5,3.5]